bitfinex/quotes_ETHUSD_20220220
["timestamp","ask_amount","ask_price","bid_price","bid_amount"]
[1645317273563,3.0,2742.0,2741.4,0.00299482]
[1645317274460,3.0,2742.0,2741.3,0.88241456]
[1645317274662,3.0,2742.0,2741.6,0.00299475]
[1645317274860,3.5,2741.9,2741.6,0.00299475]
[1645317275066,0.91301,2741.7,2741.6,0.00299475]
[1645317275263,0.5,2741.6,2741.0,0.007]
[1645317275468,2.34803,2741.5,2741.0,0.007]
[1645317275661,2.29803,2741.5,2741.0,0.007]
[1645317275862,2.19803,2741.5,2741.0,0.007]
[1645317276061,2.19803,2741.5,2741.2,0.94640771]
[1645317276514,2.19803,2741.5,2741.0,0.007]
[1645317276713,3.22673,2741.5,2741.0,0.007]
[1645317277513,3.77354258,2741.5,2741.0,0.007]
[1645317277715,3.77354258,2741.5,2741.4,0.84307242]
[1645317278915,3.77354258,2741.5,2741.1,0.00134355]
[1645317279216,3.77354258,2741.5,2741.0,0.007]
[1645317279418,0.00321598,2741.4,2741.1,0.00321642]
[1645317279617,0.91297,2741.3,2741.1,0.00321642]
[1645317279817,0.00321598,2741.4,2741.3,0.74007002]
[1645317280368,2.74484258,2741.5,2741.3,0.74007002]
[1645317280566,0.91298,2741.4,2741.3,0.74007002]
[1645317283564,1.43498,2741.4,2741.3,0.74007002]
[1645317285614,0.54979532,2741.5,2741.3,0.74007002]
[1645317286411,0.54681258,2741.5,2741.3,0.74007002]
[1645317286612,0.54981086,2741.5,2741.3,0.74007002]
[1645317287015,0.54981086,2741.5,2741.4,1.16145005]
[1645317287760,0.54681258,2741.5,2741.3,0.74007002]
[1645317288062,2.37266258,2741.5,2741.3,0.74007002]
[1645317289062,2.37566086,2741.5,2741.3,0.74007002]
[1645317290066,2.37266258,2741.5,2741.3,0.74007002]
[1645317290271,2.37565981,2741.5,2741.3,0.74007002]
[1645317291373,2.67266258,2741.5,2741.3,0.74007002]
[1645317291608,2.67565981,2741.5,2741.3,0.74007002]
[1645317292011,3.67479977,2741.5,2741.3,0.74007002]
[1645317292409,0.522,2741.4,2741.3,0.74007002]
[1645317293007,0.60811616,2741.4,2741.3,0.74007002]
[1645317295457,0.55811616,2741.4,2741.3,0.74007002]
[1645317297263,0.472,2741.4,2741.3,0.74007002]
[1645317302317,1.38491,2741.4,2741.3,0.74007002]
[1645317305660,0.91291,2741.4,2741.3,0.74007002]
[1645317306263,0.54980991,2741.5,2741.3,0.74007002]
[1645317306511,0.54980991,2741.5,2741.4,5.15327396]
[1645317306711,0.54980991,2741.5,2741.4,6.7032183]
[1645317306908,0.54681258,2741.5,2741.4,6.7032183]
[1645317307507,0.54681258,2741.5,2741.4,5.15327396]
[1645317308111,0.54681258,2741.5,2741.4,6.7031611]
[1645317308317,0.00299728,2741.6,2741.5,3.5]
[1645317308512,0.00299728,2741.6,2741.5,5.04988714]
[1645317308712,0.91262,2742.5,2741.5,5.04988714]
[1645317308910,0.86262,2742.5,2741.8,1.02314003]
[1645317309112,0.91265,2742.2,2741.8,1.02314003]
[1645317309510,0.91265,2742.2,2741.5,3.5]
[1645317309716,0.91265,2742.2,2741.6,1.5497974]
[1645317309913,1.91265,2742.2,2741.5,3.5]
[1645317310561,1.99876616,2742.2,2741.4,1.65327396]
[1645317311762,1.91265,2742.2,2741.4,1.65327396]
[1645317312162,1.99876616,2742.2,2741.4,1.65327396]
[1645317312964,1.99876616,2742.2,2741.4,2.75083741]
[1645317313161,0.00321643,2741.9,2741.4,2.75083741]
[1645317313361,0.91273,2741.8,2741.4,2.75083741]
[1645317314221,0.00321653,2741.7,2741.4,1.65327396]
[1645317315020,0.522,2741.6,2741.4,1.65327396]
[1645317315318,2.3478,2741.6,2741.4,1.65327396]
[1645317315717,3.3478,2741.6,2741.4,1.65327396]
[1645317315917,2.3478,2741.6,2741.4,1.65327396]
[1645317316119,0.522,2741.6,2741.4,1.65327396]
[1645317316317,1.522,2741.6,2741.4,1.65327396]
[1645317316520,0.522,2741.6,2741.4,1.65327396]
[1645317316720,0.91289,2741.7,2741.4,1.65327396]
[1645317316721,0.91610646,2741.7,2741.4,1.65327396]
[1645317317765,0.91289,2741.7,2741.4,1.65327396]
[1645317317963,0.91610649,2741.7,2741.4,1.65327396]
[1645317318762,0.91289,2741.7,2741.4,1.65327396]
[1645317319166,0.91610649,2741.7,2741.4,1.65327396]
[1645317319964,0.91289,2741.7,2741.4,1.65327396]
[1645317320266,0.91610649,2741.7,2741.4,1.65327396]
[1645317321263,0.91289,2741.7,2741.4,1.65327396]
[1645317321515,0.91610649,2741.7,2741.4,1.65327396]
[1645317322514,0.522,2741.6,2741.4,1.65327396]
[1645317324920,1.43498,2741.6,2741.4,1.65327396]
[1645317325269,2.3480157,2741.6,2741.4,1.65327396]
[1645317325668,0.3,2741.5,2741.4,1.65327396]
[1645317325870,1.822,2741.5,2741.4,1.65327396]
[1645317327169,1.822,2741.5,2741.3,0.74007002]
[1645317327170,3.5,2741.4,2741.3,0.74007002]
[1645317327371,5.9351,2741.4,2741.3,0.74007002]
[1645317327774,5.9351,2741.4,2740.4,2.77782727]
[1645317327775,0.9132857,2740.9,2739.8,0.04113122]
[1645317327978,0.01291891,2740.1,2739.4,60.0]
[1645317328180,6.529,2739.5,2739.4,58.11725263]
[1645317328375,7.96487,2739.5,2739.4,51.45100548]
[1645317328574,9.26487,2739.5,2739.4,50.65100457]
[1645317328773,9.83338616,2739.5,2739.4,39.78904446]
[1645317329017,16.59148473,2739.5,2739.4,16.58701341]
[1645317329218,12.0,2739.4,2738.0,0.0556241]
[1645317329421,12.0,2739.4,2737.3,1.40985091]
[1645317329422,6.529,2738.8,2737.4,2.77410441]
[1645317329618,6.529,2738.8,2738.1,0.04433703]
[1645317329619,6.529,2738.5,2738.1,0.04433703]
[1645317329818,0.522,2738.7,2737.5,1.079]
[1645317329819,0.522,2738.4,2737.5,1.079]
[1645317330221,0.522,2738.9,2738.4,1.566]
[1645317330421,0.522,2739.3,2738.5,0.91351]
[1645317330624,0.522,2739.3,2738.4,1.566]
[1645317331119,0.522,2739.3,2738.7,0.00323281]
[1645317331521,0.522,2739.3,2738.4,1.51923281]
[1645317331824,0.9136,2739.2,2738.8,1.06837592]
[1645317332227,1.0,2739.2,2738.8,1.06837592]
[1645317332424,1.5577548,2739.5,2738.8,1.06837592]
[1645317332425,0.5577548,2739.5,2738.8,1.06837592]
[1645317332623,0.5577548,2739.5,2738.8,1.07199378]
[1645317333864,1.4712548,2739.5,2738.8,1.07199378]
[1645317334068,0.5077548,2739.5,2738.8,1.07199378]
[1645317335466,1.4212548,2739.5,2738.8,1.07199378]
[1645317336921,0.5077548,2739.5,2738.9,13.2942699]
[1645317337116,0.5077548,2739.5,2739.0,11.95684786]
[1645317337316,0.5077548,2739.5,2739.1,0.00361786]
[1645317337513,0.5077548,2739.5,2739.1,2.3520785]
[1645317338115,0.5077548,2739.5,2739.1,0.00361786]
[1645317340017,0.5077548,2739.5,2738.9,0.00361786]
[1645317341263,0.5077548,2739.5,2739.1,1.03014618]
[1645317341465,0.5077548,2739.5,2739.1,1.03376404]
[1645317341864,0.5077548,2739.5,2739.1,0.00361786]
[1645317342064,0.5077548,2739.5,2738.9,0.00361786]
[1645317342265,1.4212548,2739.5,2738.9,0.00361786]
[1645317342866,0.5077548,2739.5,2738.9,0.00361786]
[1645317343266,0.5077548,2739.5,2739.1,1.0943898]
[1645317343467,0.5077548,2739.5,2739.1,1.09800766]
[1645317344509,0.5077548,2739.5,2739.2,13.48004373]
[1645317344711,0.00171349,2740.2,2739.3,4.0]
[1645317345120,0.00171349,2740.2,2739.4,0.00361786]
[1645317345410,0.1824,2740.6,2739.4,0.00361786]
[1645317345608,0.91316,2740.5,2739.7,1.18954606]
[1645317345809,0.00173637,2740.2,2739.8,0.00361786]
[1645317346610,0.91319,2740.4,2739.8,0.00361786]
[1645317346909,0.0017365,2740.2,2739.8,0.00361786]
[1645317347762,1.0,2740.6,2739.8,0.00361786]
[1645317348171,0.00301608,2740.2,2739.8,0.00361786]
[1645317349167,0.91322,2740.3,2739.8,0.00361786]
[1645317349368,0.00305041,2740.2,2739.8,0.00361786]
[1645317350367,1.91322,2740.3,2739.8,0.00361786]
[1645317350568,0.18545041,2740.2,2739.8,0.00361786]
[1645317351170,0.18545041,2740.2,2739.3,0.04577017]
[1645317351171,0.18545041,2740.2,2739.5,0.00361786]
[1645317351374,0.91351,2740.0,2739.3,0.04577017]
[1645317351614,0.91351,2740.0,2739.1,0.00361786]
[1645317351813,0.91351,2740.0,2739.3,0.04576937]
[1645317352614,0.91351,2740.0,2739.1,0.00361786]
[1645317353013,0.91351,2740.0,2739.1,0.04871415]
[1645317353615,0.91351,2740.0,2739.1,0.96206415]
[1645317353816,0.91351,2740.0,2739.2,0.00361786]
[1645317354219,0.1824,2739.9,2739.1,0.86696786]
[1645317354618,0.1824,2740.1,2739.1,0.86696786]
[1645317355019,0.1824,2740.1,2739.0,2.37607287]
[1645317355020,0.1824,2740.1,2739.6,1.84031503]
[1645317355261,0.0030052,2740.2,2739.6,1.84031503]
[1645317355963,1.1354052,2740.6,2739.7,4.0]
[1645317356261,1.82658,2740.4,2739.7,3.95]
[1645317357960,0.91323,2740.3,2739.4,1.1854]
[1645317358363,1.91323,2740.3,2739.4,1.1854]
[1645317358561,0.91323,2740.3,2739.4,1.1854]
[1645317358762,2.09563,2740.3,2739.4,1.1854]
[1645317359621,0.91349,2739.9,2739.4,1.1854]
[1645317360222,0.91349,2739.9,2739.5,0.00323039]
[1645317360620,1.91349,2739.9,2739.5,0.00323039]
[1645317361022,1.91349,2739.9,2739.4,1.1854]
[1645317361428,1.91349,2739.9,2739.5,0.00305806]
[1645317362224,1.91349,2739.9,2739.4,1.1854]
[1645317362422,2.46089568,2739.9,2739.5,0.00305806]
[1645317363268,0.1824,2739.8,2739.5,0.00305806]
[1645317363467,0.1824,2739.8,2739.4,1.1854]
[1645317363868,2.64329568,2739.9,2739.5,0.00305806]
[1645317364668,2.64329568,2739.9,2739.4,4.7854]
[1645317364868,2.64329568,2739.9,2739.5,0.00323028]
[1645317365867,2.64329568,2739.9,2739.4,4.7854]
[1645317366069,2.64329568,2739.9,2739.5,0.00323028]
[1645317367122,2.64329568,2739.9,2739.4,4.7854]
[1645317367316,2.64329568,2739.9,2739.5,0.00128476]
[1645317368416,2.64329568,2739.9,2739.4,4.7854]
[1645317368616,2.64329568,2739.9,2739.5,0.00323287]
[1645317368919,2.46089568,2739.9,2739.5,0.00323287]
[1645317369516,2.46089568,2739.9,2739.4,4.7854]
[1645317369721,2.46089568,2739.9,2739.5,0.00323287]
[1645317370665,2.46089568,2739.9,2739.4,4.7854]
[1645317370865,2.46089568,2739.9,2739.5,0.00323287]
[1645317371468,0.08611616,2739.8,2739.5,0.00323287]
[1645317371666,3.26309,2739.7,2739.5,0.00323287]
[1645317371866,1.0,2739.6,2739.4,3.6]
[1645317372066,0.91369,2739.5,2739.4,3.6]
[1645317372967,1.82758,2739.3,2738.9,2.2963]
[1645317373168,1.82758,2739.3,2739.0,1.55125444]
[1645317373367,2.82758,2739.3,2739.0,1.55125444]
[1645317373567,1.82758,2739.3,2738.9,1.20754385]
[1645317373770,1.0,2739.2,2738.9,1.20754385]
[1645317374015,2.82758,2739.3,2738.9,0.81754385]
[1645317374217,2.82758,2739.3,2738.8,500.0]
[1645317374218,0.91382,2739.1,2738.8,500.0]
[1645317374417,1.43593,2739.0,2738.8,500.0]
[1645317374815,2.43593,2739.0,2738.8,500.0]
[1645317375916,2.43593,2739.0,2738.8,500.00323603]
[1645317376820,2.43593,2739.0,2738.8,500.0]
[1645317377028,2.43593,2739.0,2738.8,500.00323603]
[1645317377218,2.38593,2739.0,2738.8,500.00323603]
[1645317377885,2.38593,2739.0,2738.8,503.6]
[1645317378088,2.38593,2739.0,2738.8,503.60128539]
[1645317379187,2.38593,2739.0,2738.8,503.06741582]
[1645317379389,2.47204616,2739.0,2738.8,503.06870121]
[1645317380293,2.47204616,2739.0,2738.8,503.06741582]
[1645317380489,2.47204616,2739.0,2738.8,503.06870121]
[1645317381086,2.38593,2739.0,2738.8,503.06870121]
[1645317381517,2.47204616,2739.0,2738.8,503.06741582]
[1645317381715,2.47204616,2739.0,2738.8,503.07065474]
[1645317382820,2.47204616,2739.0,2738.8,502.52342582]
[1645317383015,2.47204616,2739.0,2738.8,502.52666474]
[1645317383729,2.68593,2739.0,2738.8,502.52666474]
[1645317383921,2.68593,2739.0,2738.8,497.03956582]
[1645317383922,0.3,2738.9,2738.8,497.03956582]
[1645317384118,0.3,2738.9,2738.8,496.77395135]
[1645317384119,0.822,2738.9,2738.8,496.77395135]
[1645317384317,1.122,2738.9,2738.8,491.03947027]
[1645317384716,2.122,2738.9,2738.8,490.00893027]
[1645317384915,2.122,2738.9,2738.8,483.8032464]
[1645317384916,2.2668,2738.9,2738.8,483.8032464]
[1645317385120,2.2668,2738.9,2738.8,479.88226662]
[1645317385121,2.2692,2738.9,2738.8,479.88226662]
[1645317385375,2.2676,2738.9,2738.8,473.39672662]
[1645317385571,2.2684,2738.9,2738.8,467.91108662]
[1645317385764,2.2716,2738.9,2738.8,467.91108662]
[1645317385965,2.2724,2738.9,2738.8,462.42559662]
[1645317386166,3.17705,2738.9,2738.8,462.42559662]
[1645317386465,3.17945,2738.9,2738.8,456.94036662]
[1645317386668,3.18265,2738.9,2738.8,456.94036662]
[1645317386868,3.18345,2738.9,2738.8,456.94036662]
[1645317387168,3.26876616,2738.9,2738.8,451.45513662]
[1645317387367,3.27276616,2738.9,2738.8,451.45513662]
[1645317387568,3.27036616,2738.9,2738.8,445.96978662]
[1645317387769,3.27516616,2738.9,2738.8,445.33178662]
[1645317387974,3.27436616,2738.9,2738.8,445.33178662]
[1645317388169,3.27436616,2738.9,2738.8,439.84673662]
[1645317388369,3.27196616,2738.9,2738.8,439.84673662]
[1645317388579,3.27196616,2738.9,2738.8,434.36156662]
[1645317388770,3.27676616,2738.9,2738.8,434.36156662]
[1645317389218,3.27436616,2738.9,2738.8,428.87653662]
[1645317389418,3.18425,2738.9,2738.8,428.87653662]
[1645317389633,13.3132,2738.9,2738.8,419.8482257]
[1645317389823,13.3132,2738.9,2738.8,419.29620486]
[1645317389824,110.05799809,2738.9,2738.8,419.29620486]
[1645317390020,77.70156409,2738.9,2738.8,418.13920486]
[1645317390219,80.82720809,2738.9,2738.8,407.16731486]
[1645317390421,76.93600709,2738.9,2738.8,407.16731486]
[1645317390623,76.78600809,2738.9,2738.8,401.68168486]
[1645317390820,81.38858609,2738.9,2738.8,399.19392442]
[1645317391022,88.20526109,2738.9,2738.8,399.19392442]
[1645317391220,97.82361909,2738.9,2738.8,382.73523472]
[1645317391420,63.21748009,2738.9,2738.8,382.33523472]
[1645317391620,81.00839609,2738.9,2738.8,375.76898305]
[1645317391821,56.14937309,2738.9,2738.8,375.76898305]
[1645317392022,50.01937309,2738.9,2738.8,375.76898305]
[1645317392220,50.01617309,2738.9,2738.8,370.28347305]
[1645317392424,50.01857309,2738.9,2738.8,370.28347305]
[1645317392622,9.3412,2738.9,2738.8,370.28347305]
[1645317392870,9.3236,2738.9,2738.8,370.28347305]
[1645317393073,9.3212,2738.9,2738.8,370.28347305]
[1645317393272,9.31,2738.9,2738.8,370.28347305]
[1645317393468,9.40091616,2738.9,2738.8,370.28347305]
[1645317393670,9.39931616,2738.9,2738.8,370.28347305]
[1645317393876,12.25868507,2738.9,2738.8,370.28347305]
[1645317394068,12.25708507,2738.9,2738.8,370.28347305]
[1645317394268,12.25628507,2738.9,2738.8,370.28347305]
[1645317394470,12.11868507,2738.9,2738.8,370.28347305]
[1645317395072,12.25628507,2738.9,2738.8,370.28347305]
[1645317395269,17.25868507,2738.9,2738.8,370.28347305]
[1645317395474,11.60048507,2738.9,2738.8,370.28347305]
[1645317395671,8.651,2738.9,2738.8,370.28347305]
[1645317395875,11.51422576,2738.9,2738.8,370.28347305]
[1645317396921,3.47134192,2738.9,2738.8,370.28347305]
[1645317397125,0.91435,2739.0,2738.8,370.28347305]
[1645317397321,0.56009711,2739.1,2738.8,370.28347305]
[1645317397520,0.522,2739.3,2738.8,370.28347305]
[1645317398127,3.38483999,2739.7,2738.9,3.5]
[1645317398322,4.022,2739.7,2738.9,3.5]
[1645317398721,0.522,2739.7,2738.9,3.50324155]
[1645317398923,0.91345,2739.8,2738.9,3.50324155]
[1645317399321,0.91345,2739.8,2739.0,0.91343]
[1645317399525,0.91345,2739.8,2739.1,3.5]
[1645317400021,0.91345,2739.8,2739.2,0.00324141]
[1645317400472,0.13576817,2739.7,2739.1,3.31293738]
[1645317401269,0.13576817,2739.7,2739.0,0.91343]
[1645317401470,0.13576817,2739.4,2738.9,1.2068]
[1645317402073,0.13576817,2739.4,2738.9,4.6215174]
[1645317402268,0.13576817,2739.4,2738.9,1.2068]
[1645317403572,0.13576817,2739.4,2738.9,1.1568]
[1645317404627,0.13576817,2739.4,2739.2,0.91398323]
[1645317405233,0.65776817,2739.4,2739.0,0.0032415]
[1645317405628,0.65776817,2739.4,2738.9,1.1568]
[1645317405833,0.65776817,2739.4,2739.1,0.00324148]
[1645317406830,0.65776817,2739.4,2738.9,1.1568]
[1645317407028,0.65776817,2739.4,2739.1,0.00324151]
[1645317407873,0.13576817,2739.1,2738.8,370.28347305]
[1645317408072,0.65776817,2739.1,2738.8,370.28347305]
[1645317409369,0.65776817,2739.1,2738.8,370.2847531]
[1645317410466,0.65776817,2739.1,2738.8,370.28347305]
[1645317410669,0.65776817,2739.1,2738.8,370.28671464]
[1645317411521,0.65776817,2739.1,2738.8,370.28347305]
[1645317411815,0.65776817,2739.1,2738.8,370.28671464]
[1645317412817,0.65776817,2739.1,2738.8,370.28347305]
[1645317413015,0.65776817,2739.1,2738.8,370.28671464]
[1645317414022,0.65776817,2739.1,2738.8,370.28347305]
[1645317414318,0.65776817,2739.1,2738.8,370.28671464]
[1645317415119,0.65776817,2739.1,2738.8,370.28347305]
[1645317415774,0.65776817,2739.1,2738.8,369.44499066]
[1645317415972,0.65776817,2739.1,2738.8,363.96079066]
[1645317415973,14.47630433,2739.0,2738.8,363.96079066]
[1645317416171,8.10087817,2738.9,2738.8,363.96079066]
[1645317416376,20.36377533,2738.9,2738.8,358.47600066]
[1645317416680,14.41325633,2738.9,2738.8,358.4792399]
[1645317416969,14.91162633,2738.9,2738.8,352.9943699]
[1645317417170,14.91322633,2738.9,2738.8,352.9943699]
[1645317417470,14.91082633,2738.9,2738.8,347.4992299]
[1645317417670,15.6876533,2738.9,2738.8,347.49599066]
[1645317417873,15.6924533,2738.9,2738.8,347.49599066]
[1645317418070,15.6900533,2738.9,2738.8,342.01106066]
[1645317418271,13.7564533,2738.9,2738.8,342.01106066]
[1645317418470,15.7116533,2738.9,2738.8,342.01106066]
[1645317418672,15.7116533,2738.9,2738.8,336.52612066]
[1645317419118,15.7116533,2738.9,2738.8,331.04120066]
[1645317419320,23.8552533,2738.9,2738.8,331.04120066]
[1645317419519,20.1276533,2738.9,2738.8,331.04120066]
[1645317419717,16.2212533,2738.9,2738.8,325.55597066]
[1645317419917,16.2188533,2738.9,2738.8,325.55597066]
[1645317420117,20.1180533,2738.9,2738.8,325.55597066]
[1645317420324,20.1188533,2738.9,2738.8,320.07066066]
[1645317420518,16.2214543,2738.9,2738.8,320.07066066]
[1645317420716,16.2206543,2738.9,2738.8,314.58539066]
[1645317421118,16.2214543,2738.9,2738.8,314.58539066]
[1645317421319,16.2222543,2738.9,2738.8,309.10014066]
[1645317421521,20.1222543,2738.9,2738.8,308.55714405]
[1645317421718,27.9547823,2738.9,2738.8,303.07188405]
[1645317421921,27.9636763,2738.9,2738.8,303.07188405]
[1645317422118,27.9668763,2738.9,2738.8,303.07188405]
[1645317422318,24.0820753,2738.9,2738.8,297.58668405]
[1645317422520,10.8918213,2738.9,2738.8,297.58668405]
[1645317422766,14.3556603,2738.9,2738.8,297.58668405]
[1645317422968,9.19370514,2738.9,2738.8,297.58668405]
[1645317423168,9.05530514,2738.9,2738.8,297.58668405]
[1645317424168,9.4414213,2738.9,2738.8,292.10232405]
[1645317424367,10.7414213,2738.9,2738.8,292.10232405]
[1645317426517,10.65530514,2738.9,2738.8,292.10232405]
[1645317427124,10.65530514,2738.9,2738.8,286.61797405]
[1645317427321,10.7414213,2738.9,2738.8,286.61797405]
[1645317427718,10.7414213,2738.9,2738.8,281.13356405]
[1645317428119,10.65530514,2738.9,2738.8,275.64919405]
[1645317428719,10.65530514,2738.9,2738.8,270.16483405]
[1645317428920,10.7414213,2738.9,2738.8,270.16483405]
[1645317429320,10.65530514,2738.9,2738.8,270.16483405]
[1645317429725,10.7414213,2738.9,2738.8,264.68043405]
[1645317432067,10.65530514,2738.9,2738.8,264.68043405]
[1645317433868,10.7414213,2738.9,2738.8,264.68043405]
[1645317436323,3.52295373,2738.9,2738.8,264.68043405]
[1645317436523,0.13576817,2738.9,2738.8,264.68043405]
[1645317437623,0.55231018,2739.2,2738.9,5.0]
[1645317437873,0.00194711,2739.2,2739.0,3.41545026]
[1645317438069,0.00194711,2739.2,2738.9,5.0]
[1645317438367,0.00194711,2739.2,2738.9,5.00303683]
[1645317438768,0.00194711,2739.2,2739.0,0.96947582]
[1645317439570,0.00194711,2739.2,2739.0,0.97251263]
[1645317440572,0.00194711,2739.2,2739.0,0.96947582]
[1645317440770,0.00194711,2739.2,2739.0,0.97251285]
[1645317441621,0.00194711,2739.2,2739.0,0.96947582]
[1645317441821,0.00194711,2739.2,2739.0,0.97251285]
[1645317442824,0.00194711,2739.2,2739.0,0.96947582]
[1645317443026,0.00194711,2739.2,2739.0,0.97251285]
[1645317444024,0.00194711,2739.2,2739.0,0.96947582]
[1645317444226,0.00194711,2739.2,2739.0,0.97251283]
[1645317445370,0.00194711,2739.2,2739.0,0.96947582]
[1645317445569,0.00194711,2739.2,2739.0,0.97251283]
[1645317446469,0.00194711,2739.2,2739.0,0.96947582]
[1645317446768,0.00194711,2739.2,2739.0,0.97251283]
[1645317447174,1.91652628,2739.6,2739.1,5.0]
[1645317447371,1.91652628,2739.6,2739.1,8.40910424]
[1645317447372,0.00303628,2739.6,2739.1,8.40910424]
[1645317447569,0.00303628,2739.6,2739.1,5.0]
[1645317447776,0.54740568,2739.9,2739.1,5.0]
[1645317447970,0.54740568,2739.9,2739.7,1.00854908]
[1645317448375,2.37435568,2739.9,2739.7,1.00854908]
[1645317449021,3.37739211,2739.9,2739.7,1.00854908]
[1645317449223,2.37739211,2739.9,2739.7,1.00854908]
[1645317449426,1.0,2739.8,2739.7,1.00854908]
[1645317449624,3.37739211,2739.9,2739.7,1.00854908]
[1645317450023,3.37435568,2739.9,2739.7,1.00854908]
[1645317450528,3.37739211,2739.9,2739.7,1.00854908]
[1645317451325,3.37435568,2739.9,2739.7,1.00854908]
[1645317451524,3.37739982,2739.9,2739.2,1.1708]
[1645317451923,3.46351598,2739.9,2739.2,1.1708]
[1645317452124,3.37739982,2739.9,2739.2,1.1708]
[1645317452526,3.37435568,2739.9,2739.2,1.1708]
[1645317452769,0.91353,2739.6,2739.4,0.91783471]
[1645317453974,0.91657426,2739.6,2739.4,0.91783471]
[1645317454572,0.91657426,2739.6,2739.4,0.82783471]
[1645317454771,0.91353,2739.6,2739.4,0.82783471]
[1645317454971,0.86353,2739.6,2739.4,0.82783471]
[1645317455272,0.86657323,2739.6,2739.4,0.82783471]
[1645317456072,0.86353,2739.6,2739.4,0.82783471]
[1645317456274,0.86657323,2739.6,2739.4,0.82783471]
[1645317456918,0.86657323,2739.6,2739.4,4.42783471]
[1645317457317,0.86353,2739.6,2739.4,4.42783471]
[1645317457518,0.86657323,2739.6,2739.4,4.42783471]
[1645317458223,0.81657323,2739.6,2739.4,4.42783471]
[1645317458418,0.81353,2739.6,2739.4,4.42783471]
[1645317458819,0.81657334,2739.6,2739.4,4.42783471]
[1645317459622,0.81353,2739.6,2739.4,4.42783471]
[1645317459826,4.022,2739.5,2739.4,3.6]
[1645317460025,2.64954,2739.5,2739.4,3.6]
[1645317460267,3.83194,2739.5,2739.2,0.62665235]
[1645317460467,1.0,2739.4,2739.2,0.62665235]
[1645317460667,0.1824,2739.3,2739.2,0.62665235]
[1645317460874,1.09616,2739.3,2738.8,262.02569413]
[1645317461068,1.09616,2739.3,2739.0,0.00304395]
[1645317461471,0.91376,2739.3,2739.0,0.00304395]
[1645317462069,0.91376,2739.3,2738.8,262.02569413]
[1645317462470,0.91376,2739.3,2739.0,0.00304383]
[1645317463871,0.86376,2739.3,2739.0,0.00304383]
[1645317464522,0.86376,2739.3,2738.8,262.02569413]
[1645317464721,0.86376,2739.3,2739.0,0.00282081]
[1645317465722,0.86376,2739.3,2738.8,262.02569413]
[1645317465922,0.86376,2739.3,2739.0,0.00282082]
[1645317466924,0.86376,2739.3,2738.8,261.08043405]
[1645317467123,0.86376,2739.3,2739.0,0.00282082]
[1645317467325,1.16376,2739.3,2739.0,0.00282082]
[1645317467968,1.16376,2739.3,2739.0,3.6]
[1645317468371,1.16376,2739.3,2739.0,3.60282082]
[1645317469169,1.16376,2739.3,2739.0,3.6]
[1645317469369,0.86376,2739.3,2739.0,3.6]
[1645317469570,0.86376,2739.3,2739.0,3.60284322]
[1645317469571,0.522,2739.2,2739.0,3.60284322]
[1645317469768,1.72749,2739.1,2739.0,3.60284322]
[1645317470377,2.72749,2739.1,2739.0,3.60284322]
[1645317470571,2.72749,2739.1,2739.0,3.6]
[1645317471821,1.72749,2739.1,2739.0,3.6]
[1645317472020,2.27523464,2739.1,2739.0,3.6]
[1645317473318,3.27523464,2739.1,2739.0,3.6]
[1645317476774,1.54774464,2739.1,2739.0,3.6]
[1645317477172,0.54774464,2739.1,2739.0,3.6]
[1645317481728,0.49774464,2739.1,2739.0,3.6]
[1645317502219,0.49774464,2739.1,2739.0,3.59903219]
[1645317514575,0.49774464,2739.1,2739.0,3.52903219]
[1645317515977,0.49774464,2739.1,2739.0,3.47903219]
[1645317525334,0.49774464,2739.1,2738.8,261.08401596]
[1645317525335,4.0,2739.0,2738.8,260.24849094]
[1645317525532,1.736,2738.9,2738.8,259.17693721]
[1645317525735,3.2184,2738.9,2738.8,253.18558378]
[1645317526334,3.2184,2738.9,2738.8,247.70142378]
[1645317526733,3.30451616,2738.9,2738.8,247.70142378]
[1645317527032,3.30451616,2738.9,2738.8,242.21720378]
[1645317527232,3.12211616,2738.9,2738.8,242.21720378]
[1645317527631,3.12211616,2738.9,2738.8,236.73298378]
[1645317528673,3.12211616,2738.9,2738.8,230.70476378]
[1645317528971,6.62211616,2738.9,2738.8,230.20176378]
[1645317529175,3.12211616,2738.9,2738.8,230.20176378]
[1645317529372,3.12211616,2738.9,2738.8,224.71706378]
[1645317529773,9.57811362,2738.9,2738.8,224.13106722]
[1645317530073,9.72211362,2738.9,2738.8,218.64627722]
[1645317530479,9.72211362,2738.9,2738.8,213.16150722]
[1645317530480,9.72291362,2738.9,2738.8,213.16150722]
[1645317531074,9.72211362,2738.9,2738.8,207.67683722]
[1645317531280,9.72131362,2738.9,2738.8,207.67683722]
[1645317531535,6.21891362,2738.9,2738.8,202.19223722]
[1645317531735,6.21731362,2738.9,2738.8,202.19223722]
[1645317531936,6.21811362,2738.9,2738.8,202.19223722]
[1645317532137,6.21731362,2738.9,2738.8,196.70766722]
[1645317532336,6.21891362,2738.9,2738.8,196.70766722]
[1645317532539,6.22051362,2738.9,2738.8,191.22290722]
[1645317532837,6.22131362,2738.9,2738.8,191.22290722]
[1645317533039,6.22051362,2738.9,2738.8,191.22290722]
[1645317533240,6.21891362,2738.9,2738.8,191.22290722]
[1645317533443,6.07811362,2738.9,2738.8,191.22290722]
[1645317533643,4.39199746,2738.9,2738.8,191.22290722]
[1645317533845,1.436,2738.9,2738.8,191.22290722]
[1645317534242,0.522,2738.9,2738.8,191.22290722]
[1645317534443,1.74353464,2739.1,2738.8,191.22290722]
[1645317535473,1.74353464,2739.1,2738.9,3.5]
[1645317537075,1.41143464,2739.1,2738.9,7.1]
[1645317537474,1.41143464,2739.1,2738.9,3.6]
[1645317539530,1.41143464,2739.1,2738.9,7.1]
[1645317540127,1.41143464,2739.1,2738.9,3.6]
[1645317541335,1.41143464,2739.1,2738.9,7.1]
[1645317541627,1.41143464,2739.1,2738.9,3.6]
[1645317546081,1.82775,2739.0,2738.9,3.6]
[1645317546277,5.5,2738.9,2738.8,191.22290722]
[1645317546531,5.5,2738.9,2738.8,191.22614595]
[1645317546532,6.322,2738.9,2738.8,191.22614595]
[1645317546725,9.42039746,2738.9,2738.8,185.19160595]
[1645317547025,10.42119746,2738.9,2738.8,185.19160595]
[1645317547224,10.42039746,2738.9,2738.8,185.18836722]
[1645317547426,4.92039746,2738.9,2738.8,179.70396722]
[1645317547625,4.91719746,2738.9,2738.8,179.70396722]
[1645317547825,4.91559746,2738.9,2738.8,179.70396722]
[1645317548227,1.9612,2738.9,2738.8,179.70396722]
[1645317548426,1.966,2738.9,2738.8,179.70396722]
[1645317548626,1.962,2738.9,2738.8,179.70396722]